bitfinex/quotes_SOLUSD_20220130
["timestamp","ask_amount","ask_price","bid_price","bid_amount"]
[1643560536949,15.821,94.89,94.825,0.04167945]
[1643560537151,23.3774,94.889,94.825,0.04167945]
[1643560537352,47.6094,94.889,94.825,0.04167945]
[1643560537551,52.738,94.88,94.825,0.04167945]
[1643560537754,15.822,94.87,94.825,0.04167945]
[1643560539353,47.6094,94.889,94.825,0.04167945]
[1643560541153,15.82,94.87,94.83,15.818]
[1643560541359,15.82,94.87,94.831,0.45]
[1643560541756,15.82,94.87,94.831,0.25]
[1643560542560,15.82,94.87,94.825,0.04167945]
[1643560542759,47.6094,94.889,94.825,0.04167945]
[1643560542760,15.818,94.88,94.83,15.819]
[1643560542964,15.818,94.88,94.831,39.32939577]
[1643560543160,15.818,94.88,94.832,0.2]
[1643560543361,15.818,94.88,94.832,0.45]
[1643560543962,15.818,94.88,94.84,15.817]
[1643560544360,47.6094,94.889,94.84,15.817]
[1643560545766,47.6094,94.889,94.841,0.25]
[1643560545968,47.6094,94.889,94.84,15.817]
[1643560546167,47.6094,94.889,94.841,0.25]
[1643560546968,15.817,94.89,94.85,15.816]
[1643560547267,15.817,94.89,94.851,0.25]
[1643560547669,15.817,94.89,94.85,15.816]
[1643560547869,15.815,94.9,94.85,15.816]
[1643560548071,15.815,94.9,94.851,0.25]
[1643560548470,15.815,94.9,94.85,15.816]
[1643560550601,24.255,94.909,94.85,15.816]
[1643560550798,24.255,94.909,94.86,6.0]
[1643560550998,15.813,94.91,94.861,6.0]
[1643560551197,15.813,94.91,94.861,6.25]
[1643560551600,24.4771,94.934,94.861,6.25]
[1643560551799,24.4771,94.934,94.862,23.573]
[1643560552200,24.4771,94.934,94.872,6.0]
[1643560552401,15.81,94.93,94.89,15.809]
[1643560553001,15.81,94.93,94.891,0.25]
[1643560555102,15.81,94.93,94.889,0.25]
[1643560555304,15.81,94.93,94.881,0.25]
[1643560555600,15.81,94.93,94.88,15.81]
[1643560556808,15.81,94.93,94.881,0.25]
[1643560557007,15.81,94.93,94.879,41.70001337]
[1643560557212,15.81,94.93,94.862,23.573]
[1643560557407,15.81,94.93,94.863,0.25]
[1643560558008,15.81,94.93,94.87,15.812]
[1643560558311,15.81,94.93,94.871,0.25]
[1643560559910,15.81,94.93,94.863,0.25]
[1643560560110,15.81,94.93,94.86,15.814]
[1643560560312,15.81,94.93,94.863,0.25]
[1643560560912,15.81,94.93,94.864,6.0]
[1643560562109,15.81,94.93,94.87,15.813]
[1643560562310,15.81,94.93,94.864,6.0]
[1643560569620,104.9,94.929,94.864,6.0]
[1643560569819,15.818,94.91,94.826,1.66196427]
[1643560570020,128.3888,94.909,94.822,0.2]
[1643560570221,128.3888,94.909,94.831,6.0]
[1643560570420,128.3888,94.909,94.822,0.2]
[1643560570722,15.07,94.9,94.822,0.2]
[1643560571321,15.821,94.89,94.822,0.2]
[1643560571521,24.3046,94.889,94.811,0.2]
[1643560571721,27.26129142,94.889,94.79,1.46196427]
[1643560571921,104.9,94.888,94.789,1.46196427]
[1643560572721,104.9,94.888,94.788,0.2]
[1643560572722,104.9,94.888,94.79,0.25]
[1643560572926,104.9,94.888,94.797,6.0]
[1643560573122,15.826,94.87,94.797,6.0]
[1643560573322,129.2515,94.869,94.797,6.0]
[1643560573524,129.2515,94.869,94.8,6.0]
[1643560574124,15.826,94.86,94.8,6.0]
[1643560575225,30.896,94.86,94.8,6.0]
[1643560575726,30.896,94.86,94.801,0.25]
[1643560577527,30.896,94.86,94.8,6.0]
[1643560577731,104.9,94.859,94.8,6.0]
[1643560577926,15.827,94.85,94.793,6.0]
[1643560578127,15.827,94.85,94.79,6.0]
[1643560578327,15.827,94.85,94.779,6.0]
[1643560578632,15.827,94.85,94.78,21.827]
[1643560578837,15.827,94.85,94.781,0.2]
[1643560579033,15.827,94.85,94.79,6.0]
[1643560579434,120.727,94.85,94.791,0.25]
[1643560581338,15.827,94.85,94.791,0.25]
[1643560581536,15.827,94.85,94.782,6.0]
[1643560581738,15.827,94.85,94.783,0.25]
[1643560582136,15.827,94.85,94.783,6.25]
[1643560582738,15.827,94.85,94.783,0.25]
[1643560582958,15.827,94.85,94.793,6.0]
[1643560583458,15.827,94.85,94.794,0.25]
[1643560584159,15.827,94.85,94.8,6.0]
[1643560584358,120.727,94.85,94.8,6.0]
[1643560584559,15.827,94.85,94.79,15.826]
[1643560584764,15.827,94.85,94.791,0.45]
[1643560584964,15.821,94.86,94.8,6.0]
[1643560585166,22.7459,94.868,94.801,38.54138946]
[1643560585365,22.7459,94.868,94.802,0.2]
[1643560585565,22.7459,94.868,94.811,6.0]
[1643560585766,22.7459,94.868,94.812,0.25]
[1643560585965,15.821,94.86,94.812,0.25]
[1643560586166,15.821,94.86,94.812,6.25]
[1643560586571,15.821,94.86,94.82,6.0]
[1643560586771,15.821,94.86,94.812,6.25]
[1643560586772,15.07,94.89,94.821,35.70330059]
[1643560586972,1.44907402,94.931,94.822,0.2]
[1643560587171,15.816,94.9,94.831,6.0]
[1643560587377,15.816,94.9,94.832,0.25]
[1643560587571,15.816,94.9,94.836,6.0]
[1643560587771,15.816,94.9,94.837,38.11594189]
[1643560588371,15.816,94.9,94.838,0.25]
[1643560588972,15.816,94.9,94.84,15.817]
[1643560589375,15.816,94.9,94.841,0.25]
[1643560589775,15.816,94.9,94.84,15.817]
[1643560590378,15.816,94.9,94.841,0.25]
[1643560592478,14.816,94.9,94.841,0.25]
[1643560594480,14.816,94.9,94.84,15.817]
[1643560596078,14.816,94.9,94.841,0.25]
[1643560596277,14.816,94.9,94.85,15.814]
[1643560600782,14.816,94.9,94.833,22.6038]
[1643560600980,14.816,94.9,94.84,14.817]
[1643560600981,24.8735,94.899,94.84,14.817]
[1643560601183,15.818,94.89,94.84,14.817]
[1643560601882,15.818,94.89,94.84,50.73732735]
[1643560603286,24.8735,94.899,94.84,50.73732735]
[1643560604489,24.8735,94.899,94.84,14.817]
[1643560604691,15.816,94.89,94.84,14.817]
[1643560608299,15.816,94.89,94.841,0.25]
[1643560608500,15.816,94.89,94.836,37.35098098]
[1643560608698,15.816,94.89,94.831,0.2]
[1643560609101,15.816,94.89,94.823,0.2]
[1643560609720,15.816,94.89,94.823,42.63694419]
[1643560609922,15.816,94.89,94.824,0.2]
[1643560610722,15.816,94.89,94.823,0.2]
[1643560611727,15.07,94.88,94.811,0.45]
[1643560611927,15.823,94.87,94.811,0.45]
[1643560613226,15.823,94.87,94.82,15.821]
[1643560613426,15.823,94.87,94.821,0.45]
[1643560613830,15.823,94.87,94.821,0.2]
[1643560614426,15.823,94.87,94.821,0.45]
[1643560614631,15.823,94.87,94.821,0.2]
[1643560615428,15.823,94.87,94.821,0.45]
[1643560615727,15.823,94.87,94.821,0.2]
[1643560616127,15.823,94.87,94.811,0.2]
[1643560616329,15.823,94.87,94.811,0.45]
[1643560618530,15.823,94.87,94.811,0.2]
[1643560620338,15.823,94.87,94.811,0.45]
[1643560621131,15.823,94.87,94.82,15.821]
[1643560621334,0.25,94.869,94.82,15.821]
[1643560621532,15.821,94.86,94.82,15.821]
[1643560621935,24.9277,94.879,94.82,15.821]
[1643560622333,24.9277,94.879,94.821,0.25]
[1643560622734,15.82,94.87,94.821,0.25]
[1643560623534,1.44907402,94.893,94.83,15.819]
[1643560623735,15.819,94.88,94.83,15.819]
[1643560623935,15.819,94.88,94.831,0.25]
[1643560624535,15.819,94.88,94.84,15.818]
[1643560625136,15.819,94.88,94.831,0.25]
[1643560625338,15.819,94.88,94.822,6.0]
[1643560625738,15.819,94.88,94.823,0.25]
[1643560626137,15.819,94.88,94.83,15.819]
[1643560626339,15.816,94.89,94.831,0.25]
[1643560626538,15.816,94.89,94.831,23.8447]
[1643560626737,15.816,94.89,94.835,6.0]
[1643560626938,15.816,94.89,94.831,23.8447]
[1643560628043,15.816,94.89,94.84,15.817]
[1643560628441,15.816,94.89,94.841,0.25]
[1643560629442,15.816,94.89,94.85,15.816]
[1643560629843,15.816,94.89,94.851,0.25]
[1643560631349,15.816,94.89,94.85,15.816]
[1643560632951,15.816,94.89,94.851,0.25]
[1643560634955,15.815,94.9,94.86,15.815]
[1643560635157,1.44907402,94.915,94.86,15.815]
[1643560635358,1.44907402,94.92,94.86,15.815]
[1643560635570,1.44907402,94.922,94.861,0.25]
[1643560636469,1.44907402,94.923,94.861,0.25]
[1643560636669,1.44907402,94.923,94.859,0.25]
[1643560637074,15.813,94.91,94.87,15.813]
[1643560637470,15.813,94.91,94.858,23.3232]
[1643560638070,15.813,94.91,94.822,110.9]
[1643560638271,23.5583,94.909,94.841,24.6639]
[1643560638474,23.5583,94.909,94.842,36.38529563]
[1643560638671,15.814,94.9,94.86,15.814]
[1643560640170,23.5583,94.909,94.86,15.814]
[1643560641772,15.814,94.9,94.86,15.814]
[1643560642371,0.25,94.899,94.86,15.814]
[1643560643172,15.564,94.9,94.86,15.814]
[1643560643973,23.5583,94.909,94.86,15.814]
[1643560645177,15.814,94.9,94.86,15.814]
[1643560645778,15.814,94.9,94.861,0.25]
[1643560646379,15.814,94.9,94.86,15.814]
[1643560647475,15.814,94.9,94.85,15.816]
[1643560647676,15.814,94.9,94.852,6.0]
[1643560647875,15.814,94.9,94.841,24.6639]
[1643560648080,15.814,94.9,94.842,0.25]
[1643560649581,15.814,94.9,94.833,0.25]
[1643560649780,15.814,94.9,94.812,22.9362]
[1643560649980,15.821,94.88,94.812,22.9362]
[1643560650181,24.6404,94.879,94.82,15.82]
[1643560650783,24.6404,94.879,94.812,22.9362]
[1643560651986,15.821,94.87,94.812,22.9362]
[1643560652588,15.821,94.87,94.786,1.46196427]
[1643560652790,15.07,94.86,94.777,1.46196427]
[1643560652989,25.57,94.86,94.771,1.46196427]
[1643560653191,25.57,94.86,94.767,1.46196427]
[1643560653587,22.9027,94.859,94.767,1.46196427]
[1643560653788,15.829,94.85,94.77,15.828]
[1643560653992,104.9,94.849,94.775,6.0]
[1643560654220,104.9,94.849,94.78,6.0]
[1643560654390,104.9,94.849,94.781,0.25]
[1643560654790,15.829,94.84,94.781,0.25]
[1643560655191,15.829,94.84,94.77,15.828]
[1643560655391,15.829,94.84,94.76,15.83]
[1643560655593,30.899,94.84,94.754,1.46196427]
[1643560655791,30.899,94.84,94.75,1.46196427]
[1643560656390,30.899,94.84,94.75,15.831]
[1643560657390,30.899,94.84,94.76,15.83]
[1643560657792,30.899,94.84,94.764,0.25]
[1643560658191,104.9,94.839,94.764,0.25]
[1643560658392,104.9,94.829,94.75,15.832]
[1643560658693,30.9,94.83,94.741,22.6949]
[1643560658892,24.1693,94.829,94.741,22.6949]
[1643560659092,104.9,94.828,94.741,22.6949]
[1643560660494,104.9,94.828,94.742,0.25]
[1643560662019,104.9,94.828,94.721,6.0]
[1643560662419,104.9,94.828,94.722,6.25]
[1643560662619,104.9,94.828,94.723,23.219]
[1643560662819,104.9,94.828,94.73,15.834]
[1643560663319,104.9,94.828,94.731,0.25]
[1643560666124,104.9,94.828,94.723,23.219]
[1643560666125,104.9,94.826,94.733,6.0]
[1643560666322,104.9,94.826,94.734,0.25]
[1643560667125,104.9,94.826,94.734,24.0809]
[1643560669436,104.9,94.826,94.734,23.8309]
[1643560669831,2.95669142,94.825,94.734,23.8309]
[1643560673638,104.9,94.826,94.734,23.8309]
[1643560674040,104.9,94.826,94.735,0.25]
[1643560674640,104.9,94.826,94.734,23.8309]
[1643560676945,104.9,94.826,94.735,0.25]
[1643560677343,2.95669142,94.825,94.735,0.25]
[1643560678151,104.9,94.826,94.735,0.25]
[1643560680045,104.9,94.826,94.74,15.833]
[1643560680474,104.9,94.826,94.741,0.25]
[1643560681450,104.9,94.826,94.744,6.0]
[1643560681649,104.9,94.826,94.745,23.3593]
[1643560681948,24.1693,94.829,94.746,0.25]
[1643560682350,24.1693,94.829,94.75,15.831]
[1643560682750,24.1693,94.829,94.751,0.25]
[1643560684356,30.9,94.83,94.76,15.829]
[1643560684555,30.9,94.83,94.751,0.25]
[1643560684556,15.83,94.83,94.77,6.0]
[1643560684758,15.825,94.84,94.77,6.0]
[1643560684958,15.825,94.84,94.771,111.15]
[1643560685156,15.825,94.84,94.772,6.0]
[1643560685356,1.44907402,94.863,94.81,15.823]
[1643560685756,22.7094,94.865,94.811,0.25]
[1643560686758,52.743,94.87,94.811,0.25]
[1643560687159,15.823,94.85,94.811,0.25]
[1643560687462,1.44907402,94.873,94.82,15.821]
[1643560687660,1.44907402,94.872,94.82,15.821]
[1643560687860,1.44907402,94.888,94.821,25.181]
[1643560688081,1.44907402,94.892,94.821,0.25]
[1643560688281,1.44907402,94.891,94.821,0.25]
[1643560688481,15.818,94.88,94.83,15.818]
[1643560688684,15.818,94.88,94.831,33.17786699]
[1643560688881,15.818,94.88,94.831,33.42786699]
[1643560690087,2.89678073,94.927,94.831,33.42786699]
[1643560690088,1.44907402,94.906,94.84,15.817]
[1643560690283,1.44907402,94.906,94.831,33.42786699]
[1643560690284,1.44907402,94.906,94.841,54.388]
[1643560690483,1.44907402,94.913,94.841,54.138]
[1643560690683,1.44907402,94.913,94.842,0.25]
[1643560690883,1.44907402,94.914,94.842,0.25]
[1643560691484,15.07,94.92,94.842,0.25]
[1643560692085,15.814,94.91,94.86,15.813]
[1643560692285,15.814,94.91,94.861,0.25]
[1643560692885,15.814,94.91,94.86,15.813]
[1643560693085,15.814,94.91,94.86,50.28381039]
[1643560693285,15.814,94.91,94.861,0.25]
[1643560693686,30.883,94.92,94.87,15.813]
[1643560693884,30.883,94.92,94.871,0.25]
[1643560694484,30.883,94.92,94.871,41.22302289]
[1643560696686,15.07,94.92,94.871,41.22302289]
[1643560696887,15.07,94.92,94.88,15.811]
[1643560697086,15.811,94.93,94.88,15.811]
[1643560697288,15.811,94.93,94.881,0.25]
[1643560697890,15.811,94.93,94.88,15.811]
[1643560699490,24.1548,94.947,94.88,15.811]
[1643560699792,24.1548,94.947,94.871,40.97302289]
[1643560699793,2.95669142,94.948,94.89,15.808]
[1643560700190,2.95669142,94.948,94.891,0.25]
[1643560700392,182.7227278,94.969,94.891,0.25]
[1643560700591,15.07,94.97,94.891,0.25]
[1643560700891,1.44907402,94.996,94.901,33.02166716]
[1643560701091,1.44907402,95.0,94.912,104.9]
[1643560701292,1.44907402,95.009,94.913,47.6305]
[1643560701496,1.44907402,95.011,94.922,6.0]
[1643560701694,1.44907402,95.011,94.923,6.0]
[1643560701892,1.44907402,95.012,94.924,0.25]
[1643560702092,1.44907402,95.012,94.924,23.6071]
[1643560702494,15.801,95.0,94.94,15.8]
[1643560702794,15.801,95.0,94.941,0.25]
[1643560702997,15.801,95.0,94.94,15.8]
[1643560703196,2.95669142,94.999,94.88,15.07]
[1643560703397,26.59289142,94.999,94.887,23.4883]
[1643560703594,26.59289142,94.999,94.897,6.0]
[1643560703798,2.95669142,94.998,94.897,6.0]
[1643560703996,2.95669142,94.998,94.898,44.2205686]
[1643560704196,15.806,94.98,94.91,15.805]
[1643560704396,15.806,94.98,94.911,0.25]
[1643560704595,15.806,94.98,94.92,6.0]
[1643560704796,15.806,94.98,94.921,0.25]
[1643560705505,15.802,94.99,94.921,0.25]
[1643560706097,15.802,94.99,94.92,6.0]
[1643560706298,15.802,94.99,94.921,0.25]
[1643560706897,15.802,94.99,94.921,25.0717]
[1643560707097,15.802,94.99,94.93,21.802]
[1643560707700,15.802,94.99,94.93,15.802]
[1643560707898,15.802,94.99,94.891,104.9]
[1643560708102,15.802,94.99,94.9,6.0]
[1643560708301,15.802,94.99,94.92,15.804]
[1643560708500,15.8,95.0,94.93,6.0]
[1643560708998,15.8,95.0,94.931,43.92255214]
[1643560709198,23.8992,95.008,94.931,43.92255214]
[1643560709399,23.8992,95.008,94.94,6.0]
[1643560709799,23.8992,95.008,94.95,15.799]
[1643560710200,23.8992,95.008,94.951,0.25]
[1643560710604,20.8992,95.008,94.951,0.25]
[1643560711802,15.799,95.0,94.951,0.25]
[1643560712704,15.799,95.0,94.941,0.25]
[1643560713503,15.799,95.0,94.95,15.799]
[1643560713901,15.799,95.0,94.951,0.25]
[1643560714102,20.8992,95.008,94.951,0.25]
[1643560718320,15.799,95.0,94.951,0.25]
[1643560723734,17.24807402,95.0,94.951,0.25]
[1643560724736,15.799,95.0,94.951,0.25]
[1643560724937,17.24807402,95.0,94.951,0.25]
[1643560725741,1.44907402,94.996,94.951,0.25]
[1643560725940,1.44907402,94.996,94.95,15.799]
[1643560726144,1.44907402,94.993,94.95,15.799]
[1643560726341,15.8,94.99,94.87,121.0382]
[1643560726541,1.44907402,94.98,94.875,46.0043]
[1643560726741,16.51907402,94.98,94.875,46.0043]
[1643560726942,1.44907402,94.965,94.875,46.0043]
[1643560727142,1.44907402,94.963,94.875,46.0043]
[1643560727444,1.44907402,94.961,94.876,43.63157843]
[1643560727643,15.07,94.96,94.876,43.63157843]
[1643560727843,30.877,94.96,94.89,15.808]
[1643560728044,35.28276544,94.96,94.9,6.0]
[1643560728245,2.95669142,94.959,94.9,6.0]
[1643560728648,1.44907402,94.956,94.9,6.0]
[1643560729045,1.44907402,94.955,94.9,6.0]
[1643560729246,15.808,94.95,94.876,43.63157843]
[1643560729546,1.44907402,94.944,94.832,1.46196427]
[1643560729748,15.07,94.94,94.832,1.46196427]
[1643560730045,1.44907402,94.934,94.826,48.179]
[1643560730246,15.814,94.92,94.83,52.711]
[1643560730447,15.814,94.92,94.85,38.80663218]
[1643560731846,15.814,94.92,94.85,54.62063218]
[1643560733548,15.814,94.92,94.85,38.80663218]
[1643560733850,15.814,94.92,94.84,15.816]
[1643560734648,15.814,94.92,94.83,15.818]
[1643560734848,104.9,94.919,94.839,44.40583569]
[1643560735048,15.817,94.91,94.839,44.40583569]
[1643560735249,104.9,94.909,94.839,44.40583569]
[1643560735850,15.07,94.93,94.826,48.179]
[1643560735851,15.07,94.93,94.854,34.87935682]
[1643560736250,15.813,94.91,94.854,34.87935682]
[1643560736455,15.813,94.91,94.829,2.33714889]
[1643560736651,15.813,94.91,94.855,0.25]
[1643560736851,15.813,94.91,94.83,111.15]
[1643560737352,15.813,94.91,94.83,113.48714889]
[1643560737552,15.813,94.91,94.85,15.814]
[1643560737952,15.813,94.91,94.85,16.064]
[1643560738351,15.813,94.91,94.86,6.0]
[1643560738752,15.813,94.91,94.86,6.25]
[1643560738955,15.813,94.91,94.86,0.25]
[1643560739652,15.813,94.91,94.86,6.25]
[1643560740058,15.813,94.91,94.86,22.063]
[1643560740259,15.811,94.92,94.86,22.063]
[1643560740459,52.703,94.95,94.86,22.063]
[1643560740460,67.773,94.95,94.86,22.063]
[1643560740854,67.773,94.95,94.861,104.9]
[1643560741059,67.773,94.95,94.87,6.0]
[1643560741254,67.773,94.95,94.871,37.05937255]
[1643560741855,67.773,94.95,94.88,6.0]
[1643560742159,15.81,94.93,94.871,37.05937255]
[1643560742858,15.81,94.93,94.88,6.0]
[1643560743257,15.81,94.93,94.871,37.05937255]
[1643560744957,15.81,94.93,94.88,21.81]
[1643560745157,15.81,94.93,94.88,15.81]
[1643560745361,15.81,94.93,94.88,16.06]
[1643560747362,15.81,94.93,94.88,0.25]
[1643560747862,15.81,94.93,94.871,37.05937255]
[1643560749966,15.81,94.93,94.88,15.81]
[1643560750265,15.81,94.93,94.88,0.25]
[1643560751573,15.81,94.93,94.871,37.05937255]
[1643560753373,15.81,94.93,94.88,15.81]
[1643560753775,15.81,94.93,94.88,16.06]
[1643560758191,15.81,94.93,94.88,0.25]
[1643560758390,15.81,94.93,94.871,37.05937255]
[1643560758590,15.81,94.93,94.87,16.061]
[1643560759394,1.44907402,94.928,94.87,16.061]
[1643560759592,15.812,94.92,94.87,16.061]
[1643560759992,15.812,94.92,94.88,6.0]
[1643560760193,1.44907402,94.929,94.88,21.81]
[1643560760491,1.44907402,94.931,94.88,22.06]
[1643560760692,1.44907402,94.932,94.88,22.06]
[1643560761092,15.81,94.93,94.88,22.06]
[1643560761692,15.81,94.93,94.88,16.06]
[1643560763897,17.25907402,94.93,94.88,16.06]
[1643560765296,17.25907402,94.93,94.868,23.6984]
[1643560765497,1.44907402,94.925,94.868,23.6984]
[1643560765696,15.815,94.91,94.868,23.6984]
[1643560766196,15.815,94.91,94.868,58.33792453]
[1643560766397,15.815,94.91,94.868,23.6984]
[1643560767000,15.815,94.91,94.86,16.063]
[1643560767196,1.44907402,94.919,94.86,15.813]
[1643560767399,15.811,94.92,94.87,6.0]
[1643560767596,15.811,94.92,94.871,6.0]
[1643560767996,15.811,94.92,94.87,16.061]
[1643560769297,1.44907402,94.93,94.87,16.061]
[1643560769500,1.44907402,94.929,94.871,104.9]
[1643560769697,1.44907402,94.929,94.88,15.808]
[1643560769897,1.44907402,94.929,94.88,16.058]
[1643560770099,1.44907402,94.93,94.88,16.058]
[1643560770504,1.44907402,94.931,94.88,16.058]
[1643560770701,1.44907402,94.93,94.88,16.058]
[1643560771700,15.808,94.94,94.88,16.058]
[1643560771701,1.44907402,94.929,94.88,16.058]
[1643560773102,1.44907402,94.93,94.88,16.058]
[1643560773505,1.44907402,94.931,94.89,6.0]
[1643560773704,1.44907402,94.931,94.89,21.808]
[1643560773904,1.44907402,94.931,94.89,16.058]
[1643560774504,1.44907402,94.932,94.89,16.058]
[1643560774712,1.44907402,94.935,94.89,16.058]
[1643560774910,1.44907402,94.934,94.89,16.058]
[1643560776310,1.44907402,94.935,94.89,16.058]
[1643560776810,1.44907402,94.937,94.89,16.058]
[1643560778113,1.44907402,94.935,94.89,16.058]
[1643560779013,1.44907402,94.937,94.89,16.058]
[1643560779214,1.44907402,94.938,94.89,16.058]
[1643560780316,1.44907402,94.939,94.89,16.058]
[1643560781115,1.44907402,94.939,94.89,0.25]
[1643560781328,1.44907402,94.939,94.88,15.809]
[1643560781520,1.44907402,94.936,94.88,15.809]
[1643560781760,1.44907402,94.935,94.88,16.059]
[1643560782150,1.44907402,94.935,94.881,39.84250683]
[1643560782352,15.809,94.93,94.881,39.84250683]
[1643560785160,1.44907402,94.937,94.89,15.808]
[1643560785455,1.44907402,94.938,94.89,16.058]
[1643560786555,15.809,94.93,94.89,0.25]
[1643560786955,15.809,94.93,94.88,16.059]
[1643560787356,1.44907402,94.936,94.881,37.15606884]
[1643560787555,1.44907402,94.936,94.89,15.808]
[1643560787956,1.44907402,94.937,94.89,16.058]
[1643560788856,1.44907402,94.937,94.89,0.25]
[1643560789257,1.44907402,94.937,94.881,37.15606884]
[1643560789856,1.44907402,94.937,94.89,15.808]
[1643560790059,1.44907402,94.938,94.9,6.0]
[1643560790262,1.44907402,94.942,94.901,42.12912367]
[1643560790458,1.44907402,94.945,94.901,42.12912367]
[1643560790762,1.44907402,94.946,94.9,0.25]
[1643560790965,1.44907402,94.944,94.9,0.25]
[1643560791360,1.44907402,94.945,94.9,0.25]
[1643560791560,1.44907402,94.945,94.884,24.3332]
[1643560791760,1.44907402,94.945,94.885,34.12933776]
[1643560791958,1.44907402,94.942,94.89,15.807]
[1643560792359,1.44907402,94.942,94.89,16.057]
[1643560793661,1.44907402,94.943,94.89,16.057]
[1643560793861,15.807,94.94,94.89,16.057]
[1643560795863,17.25607402,94.94,94.89,16.057]
[1643560796463,1.44907402,94.939,94.89,16.057]
[1643560796762,1.44907402,94.938,94.89,16.057]
[1643560797266,1.44907402,94.938,94.891,0.25]
[1643560797665,15.809,94.93,94.891,0.25]
[1643560798065,1.44907402,94.937,94.891,0.25]
[1643560798266,1.44907402,94.937,94.884,24.3332]
[1643560798267,1.44907402,94.937,94.885,0.25]
[1643560798766,1.44907402,94.937,94.89,15.808]
[1643560798968,1.44907402,94.938,94.89,15.808]
[1643560799265,1.44907402,94.937,94.891,0.25]
[1643560799866,1.44907402,94.936,94.891,0.25]
[1643560800268,1.44907402,94.935,94.885,0.25]
[1643560801067,15.809,94.93,94.885,0.25]
[1643560802571,15.809,94.93,94.86,15.812]
[1643560802771,1.44907402,94.922,94.857,24.6636]
[1643560802975,15.814,94.91,94.857,24.6636]
[1643560803171,24.8565,94.909,94.857,24.6636]
[1643560803371,1.44907402,94.919,94.857,24.6636]
[1643560803574,1.44907402,94.92,94.857,24.6636]
[1643560803774,1.44907402,94.919,94.857,24.6636]
[1643560804072,15.814,94.9,94.857,24.6636]
[1643560804273,1.44907402,94.918,94.857,24.6636]
[1643560804677,1.44907402,94.919,94.857,24.6636]
[1643560804978,1.44907402,94.92,94.858,0.25]
[1643560805174,1.44907402,94.919,94.858,0.25]
[1643560805482,15.814,94.91,94.858,0.25]
[1643560805974,30.884,94.91,94.858,0.25]
[1643560806175,30.884,94.91,94.804,2.88077678]
[1643560806376,1.44907402,94.904,94.79,45.35]
[1643560806577,15.824,94.88,94.794,1.46668035]
[1643560806774,15.07,94.87,94.79,45.35]
[1643560806974,15.07,94.87,94.782,1.46668035]
[1643560807175,104.9,94.869,94.782,1.46668035]
[1643560807475,1.44907402,94.868,94.777,1.46668035]